[Event "WCCC U10 2019"]
[Site "Weifang"]
[Date "2019.08.28"]
[Round "7.2"]
[White "Mayank Chakraborty"]
[Black "Ilamparthi A R"]
[Result "0-1"]
[ECO "B07"]
[WhiteElo "1731"]
[BlackElo "1984"]
[Annotator "NA RC"]
[PlyCount "120"]
[EventDate "2019.08.21"]
[EventType "swiss"]
[EventCountry "CHN"]
[SourceTitle "playchess.com"]
[Source "ChessBase"]
[SourceQuality "1"]
[TimeControl "40/5400+30:1800+30"]

{[%evp 25,118,59,88,65,69,67,32767,32767,97,108,85,68,85,14,27,32767,32767,32767,32767,-66,-53,-52,-56,32767,-20,-109,-141,-125,-155,32767,32767,32767,32767,32767,32767,32767,-146,-148,-144,-181,-172,-341,-151,-174,-125,-134,-134,-143,-147,-163,-127,-129,-139,-163,-109,-212,32767,32767,32767,32767,32767,32767,32767,32767,32767,32767,32767,32767,-858,-835,-915,-783,-899,-948,-554,-638,-628,-560,-5214,-5202,-29947,32767,32767,32767,32767,32767,32767,32767,32767,32767,32767,32767,32767,-29991,-29992]} 1. e4 {[%emt 0:00:00]} g6 {[%emt 0:00:00]} 2. d4 {[%emt 0:00:00]} Bg7 {[%emt 0:00:00]} 3. Nf3 {[%emt 0:00:00]} d6 {[%emt 0:00:13]} 4. c3 {[%emt 0:00:05]} Nf6 {[%emt 0:00:06]} 5. Bd3 {[%emt 0:00:07]} O-O {[%emt 0:00:08]} 6. O-O {[%emt 0:00:12]} Nc6 {[%emt 0:00:14]} 7. d5 {[%emt 0:00:08]} Nb8 {[%emt 0:00:22]} 8. c4 {[%emt 0:00:33]} a5 {[%emt 0:00:20] B07: Pirc Defence: Miscellaneous Systems} 9. Nc3 {[%emt 0:00:58]} Na6 {[%emt 0:01:25]} 10. h3 {[%emt 0:00:44]} Nc5 {[%emt 0:02:12]} (10... e5 11. dxe6 Bxe6 12. Be3 Re8 13. Rc1 Nb4 14. Nd4 Nxd3 15. Qxd3 Nd7 16. b3 {1-0 (34) Jakovenko,D (2713)-Rapport,R (2693) Achaia 2013}) 11. Be3 $146 {[%emt 0:01:33]} ({Predecessor:} 11. Bc2 e5 12. Bg5 h6 13. Be3 Ne8 14. Qd2 Kh7 15. Rae1 b6 16. Nh2 {1-0 (37) Komissarov,A (2234)-Kavinda,A (2091) Moscow 2017}) 11... Nfd7 {[%emt 0:08:36]} 12. Bc2 {[%emt 0:06:25]} c6 {[%emt 0:03:56]} 13. Bd4 {[%emt 0:03:05]} f6 {[%emt 0:04:58]} 14. Qe2 {[%emt 0:03:15]} e5 {[%emt 0:06:49]} 15. dxe6 {[%emt 0:02:22]} Nxe6 {[%emt 0:00:12]} 16. Be3 {[%emt 0:00:31]} Ne5 {[%emt 0:06:38]} 17. Rad1 {[%emt 0:07:50]} Qe7 {[%emt 0:02:42]} 18. Ne1 {[%emt 0:02:03]} g5 {[%emt 0:09:20]} 19. Bb3 {[%emt 0:15:01]} ({Better is} 19. Na4 $16) 19... Nc5 {[%emt 0:02:09]} 20. Bxc5 {[%emt 0:05:30]} dxc5 {[%emt 0:00:07]} 21. Na4 {[%emt 0:00:48]} Rb8 {[%emt 0:19:30]} 22. Qd2 {[%emt 0:06:54]} ({White should try} 22. Qe3 $11) 22... b6 {[%emt 0:01:30]} 23. Nd3 {[%emt 0:08:03]} Ng6 {[%emt 0:00:27]} 24. Nc1 {[%emt 0:07:57]} Nh4 {[%emt 0:02:06]} 25. f4 {[%emt 0:12:10]} f5 {[%emt 0:06:40]} ({Of course not} 25... Qxe4 $6 26. Bc2 $11) 26. e5 {[%emt 0:02:14]} gxf4 {[%emt 0:00:21]} 27. Nd3 {[%emt 0:00:09]} f3 {[%emt 0:00:38]} 28. g3 {[%emt 0:00:50]} Ng6 {[%emt 0:00:42]} 29. Rxf3 {[%emt 0:01:54]} Nxe5 {[%emt 0:05:44]} 30. Re3 {[%emt 0:00:41] [#]} Qc7 $1 {[%emt 0:00:12]} 31. Nxe5 {[%emt 0:03:13]} Bxe5 {[%emt 0:00:08]} 32. Qe1 {[%emt 0:00:05] [#]} Bf6 $1 {[%emt 0:02:01]} ({Stronger than} 32... Bd4 {[#]} 33. Rxd4 $1 {[%mdl 512]} cxd4 34. c5+ (34. Re7 Bd7 $18) 34... Kh8 35. Re7 $16) 33. Nc3 $2 {[%emt 0:03:02]} (33. Rf3 {keeps fighting.}) 33... Qg7 {[%emt 0:01:24]} (33... f4 $19 34. gxf4 Bd4) 34. Kh2 {[%emt 0:00:10]} Bg5 {[%emt 0:02:53]} 35. Re8 {[%emt 0:00:11]} Bd7 {[%emt 0:01:10]} 36. Rxb8 {[%emt 0:00:11]} Rxb8 {[%emt 0:00:02]} 37. Qf1 {[%emt 0:02:26]} Bf6 {[%emt 0:03:41]} 38. Qd3 {[%emt 0:03:21]} Rd8 {[%emt 0:02:20]} 39. Qf3 {[%emt 0:01:30] [#]} Re8 {[%emt 0:01:11]} ({Black should try} 39... Kh8 $1 $19 40. Na4 f4) 40. Ne2 {[%emt 0:00:42]} (40. Ba4 $17 {was worth a try.}) 40... Bxb2 {[%emt 0:00:50]} 41. Nf4 {[%emt 0:30:55]} Bd4 {[%emt 0:30:09]} 42. Ne2 {[%emt 0:00:00]} Re3 {[%emt 0:00:00]} 43. Qf2 {[%emt 0:00:00]} Qe5 {[%emt 0:00:00]} 44. Nxd4 {[%emt 0:00:00]} cxd4 {[%emt 0:00:00]} 45. c5+ {[%emt 0:00:00]} Kg7 {[%emt 0:00:00]} 46. Rd2 {[%emt 0:00:00]} bxc5 {[%emt 0:00:00]} 47. Bc4 {[%emt 0:00:00]} Be6 {[%emt 0:00:00]} 48. Bxe6 {[%emt 0:00:00]} Qxe6 {[%emt 0:00:00]} 49. Qf4 {[%emt 0:00:00]} Re2+ {[%emt 0:00:00]} 50. Rxe2 {[%emt 0:00:00]} Qxe2+ {[%emt 0:00:00]} 51. Kg1 {[%emt 0:00:00]} Qe3+ {[%emt 0:00:00]} 52. Qxe3 $19 {[%emt 0:00:00]} dxe3 {[%emt 0:00:00]} 53. Kf1 {[%emt 0:00:00]} Kf6 {[%emt 0:00:00]} 54. Ke2 {[%emt 0:00:00]} Ke5 {[%emt 0:00:00]} 55. Kxe3 {[%emt 0:00:00]} c4 {[%emt 0:00:00]} 56. h4 {[%emt 0:00:00]} h5 {[%emt 0:00:00]} 57. a3 {[%emt 0:00:00]} a4 {[%emt 0:00:00]} 58. Kd2 {[%emt 0:00:00]} Kd4 {[%emt 0:00:00]} 59. Kc2 {[%emt 0:00:00]} c3 {[%emt 0:00:00]} 60. Kc1 {[%emt 0:00:00]} Kd3 {[%emt 0:00:00]} 0-1

[Event "WCCC U10 2019"]
[Site "Weifang"]
[Date "2019.08.28"]
[Round "7.3"]
[White "Sodbilegt, Naranbold"]
[Black "Mamedov, Edgar"]
[Result "1-0"]
[ECO "B15"]
[WhiteElo "1458"]
[BlackElo "1714"]
[Annotator "NA RC"]
[PlyCount "55"]
[EventDate "2019.08.21"]
[EventType "swiss"]
[EventCountry "CHN"]
[SourceTitle "playchess.com"]
[Source "ChessBase"]
[SourceQuality "1"]
[TimeControl "40/5400+30:1800+30"]

1. e4 {[%emt 0:00:00]} c6 {[%emt 0:00:18]} 2. d4 {[%emt 0:00:03]} d5 {[%emt 0:00:21]} 3. Nd2 {[%emt 0:00:16]} dxe4 {[%emt 0:00:56]} 4. Nxe4 {[%emt 0:00:08]} Nf6 {[%emt 0:00:04]} 5. Nxf6+ {[%emt 0:00:19]} exf6 {[%emt 0:00:13]} 6. c3 {[%emt 0:00:31]} Bd6 {[%emt 0:00:24]} 7. Bd3 {[%emt 0:00:31]} O-O {[%emt 0:00:10]} 8. Ne2 {[%emt 0:01:32]} Re8 {[%emt 0:00:57]} 9. Qc2 {[%emt 0:01:04]} h5 {[%emt 0:01:21]} 10. O-O {[%emt 0:02:18]} Nd7 {[%emt 0:01:48]} 11. Nf4 {[%emt 0:07:23]} h4 {[%emt 0:02:31]} 12. h3 {[%emt 0:05:21]} Nf8 {[%emt 0:00:45]} 13. Bd2 {[%emt 0:05:28]} Qc7 {[%emt 0:03:00]} 14. Ne2 {[%emt 0:02:47]} f5 {[%emt 0:27:04]} 15. Rae1 {[%emt 0:07:15]} f4 {[%emt 0:07:18]} 16. f3 {[%emt 0:03:58]} g5 {[%emt 0:08:02]} 17. c4 {[%emt 0:04:42]} Ne6 {[%emt 0:12:23]} 18. Bc3 {[%emt 0:01:54]} Ng7 {[%emt 0:01:38]} 19. Bh7+ {[%emt 0:08:35]} Kf8 {[%emt 0:01:43]} 20. c5 {[%emt 0:09:48]} Be7 {[%emt 0:00:24]} 21. Nc1 {[%emt 0:01:26]} Be6 {[%emt 0:02:06]} 22. Nd3 {[%emt 0:01:39]} Nf5 {[%emt 0:07:23]} 23. Rxe6 {[%emt 0:06:18]} fxe6 {[%emt 0:00:55]} 24. Bxf5 {[%emt 0:00:34]} exf5 {[%emt 0:00:18]} 25. Ne5 {[%emt 0:01:02]} Qc8 {[%emt 0:00:16]} 26. Qb3 {[%emt 0:00:32]} Kg7 {[%emt 0:04:13]} 27. Qf7+ {[%emt 0:00:37]} Kh6 {[%emt 0:00:40]} 28. Qg6# {[%emt 0:00:27]} 1-0

[Event "WCCC U10 2019"]
[Site "Weifang"]
[Date "2019.08.28"]
[Round "7.4"]
[White "Kong, Xiangrui"]
[Black "Wongso, Steve"]
[Result "0-1"]
[ECO "C02"]
[WhiteElo "1889"]
[BlackElo "1765"]
[Annotator "NA RC"]
[PlyCount "120"]
[EventDate "2019.08.21"]
[EventType "swiss"]
[EventCountry "CHN"]
[SourceTitle "playchess.com"]
[Source "ChessBase"]
[SourceQuality "1"]
[TimeControl "40/5400+30:1800+30"]

1. e4 {[%emt 0:00:00]} e6 {[%emt 0:00:00]} 2. d4 {[%emt 0:00:00]} d5 {[%emt 0:00:03]} 3. e5 {[%emt 0:00:00]} c5 {[%emt 0:00:12]} 4. c3 {[%emt 0:00:05]} Nc6 {[%emt 0:00:04]} 5. Nf3 {[%emt 0:00:06]} Nge7 {[%emt 0:00:07]} 6. Bd3 {[%emt 0:01:42]} cxd4 {[%emt 0:00:07]} 7. cxd4 {[%emt 0:00:04]} Nf5 {[%emt 0:00:07]} 8. Bxf5 {[%emt 0:01:57]} exf5 {[%emt 0:00:08]} 9. Nc3 {[%emt 0:00:25]} Be6 {[%emt 0:00:05]} 10. O-O {[%emt 0:01:02]} Be7 {[%emt 0:00:22]} 11. Ne2 {[%emt 0:01:27]} g5 {[%emt 0:00:14] C02: French: Advance Variation} 12. Bd2 {[%emt 0:01:16]} h5 $146 {[%emt 0:25:04] [#]} ({Predecessor:} 12... f4 $15 {stays ahead.} 13. Ne1 O-O 14. Bc3 Qd7 15. f3 Rad8 16. Nd3 Bf5 17. Qd2 f6 18. Rae1 Rfe8 19. Nec1 {½-½ (43) Veroci,Z (2415)-Gavric,M (2320) Banja Luka 1987}) 13. Qa4 {[%emt 0:11:16]} (13. h4 $1 $16) 13... f4 {[%emt 0:10:14]} 14. Ne1 {[%emt 0:08:11]} (14. Qb3 $11) 14... Rg8 {[%emt 0:17:17]} (14... h4 $15) 15. Kh1 {[%emt 0:12:19]} (15. h4 $11 {keeps the balance.}) 15... Bf5 {[%emt 0:06:12]} 16. Rc1 {[%emt 0:07:21]} Rc8 {[%emt 0:01:07]} 17. b4 {[%emt 0:05:13]} (17. h4 $5) 17... a6 {[%emt 0:00:48]} 18. b5 {[%emt 0:03:23]} (18. h4 $5) 18... axb5 {[%emt 0:00:18]} 19. Qxb5 {[%emt 0:00:04]} Qd7 {[%emt 0:00:15]} 20. Nd3 {[%emt 0:01:29]} Ra8 {[%emt 0:05:48]} 21. a4 {[%emt 0:08:32] [#]} h4 {[%emt 0:08:20]} ({But not} 21... Nxd4 $6 22. Nxd4 Qxb5 23. Nxb5 $15) ({Black should try} 21... Na5 $1 $17 {[%mdl 512]} 22. Qxd7+ (22. Bxa5 Qxb5) 22... Kxd7 23. Nc5+ Bxc5 24. Rxc5 {[%mdl 64] Double Attack} Nc4) 22. f3 {[%emt 0:09:01]} (22. Nc5 $11 Bxc5 23. Rxc5) 22... h3 {[%emt 0:00:39]} 23. g4 $1 {[%emt 0:01:23]} fxg3 {[%emt 0:00:11]} (23... Bxd3 $5 24. Qxd3 Rxa4 $11) 24. hxg3 {[%emt 0:01:13]} g4 {[%emt 0:00:32]} (24... Nxd4 $11 {remains equal.} 25. Nxd4 Qxb5 26. Nxb5 Bxd3 27. Nc7+ Kd7) 25. f4 $2 {[%emt 0:00:35] [#]} (25. fxg4 $14 {stays ahead.} Bxg4 26. Ndf4) 25... Be4+ {[%emt 0:00:04]} (25... Na5 $142 $1 {[%mdl 512]} 26. Qxd7+ (26. Bxa5 Qxb5) 26... Kxd7 27. Nc5+ Bxc5 28. Bxa5 Rxa5 29. Rxc5 Be4+ 30. Kh2 Rxa4) 26. Kh2 {[%emt 0:00:13] [#]} Bf3 $2 {[%emt 0:00:47]} (26... Na5 $1 $17 {[%mdl 512]} 27. Qxd7+ (27. Bxa5 Qxb5) 27... Kxd7 28. e6+ {[%mdl 64] Decoy} Kxe6 29. f5+ Kf6) 27. Ne1 $2 {[%emt 0:05:28]} (27. Nc3 $1 $11) 27... Bxe2 $1 {[%emt 0:00:31]} 28. Qxe2 {[%emt 0:00:03]} Nxd4 {[%emt 0:00:23]} 29. Qd3 {[%emt 0:00:31]} Nf5 {[%emt 0:02:19]} ({Much less strong is} 29... Qxa4 30. Be3 $15) 30. a5 {[%emt 0:01:07]} Rg6 {[%emt 0:05:55]} 31. Nc2 {[%emt 0:01:30]} d4 {[%emt 0:03:43]} 32. Rfd1 {[%emt 0:02:00]} (32. Rb1 $17 {was necessary.}) 32... Rc8 {[%emt 0:05:58]} (32... Bd8 $19 33. Bb4 Bxa5 34. Nxd4 Qxd4 35. Qxd4 (35. Qb5+ $2 Rc6 $19) 35... Nxd4 36. Rxd4 Bb6) 33. Nxd4 {[%emt 0:05:53] [#]} (33. Ne1 $17) 33... Rxc1 $1 {[%emt 0:03:50]} 34. Bxc1 {[%emt 0:00:04]} Nxd4 {[%emt 0:00:19]} 35. Qxd4 {[%emt 0:00:22]} Qxd4 {[%emt 0:00:06]} 36. Rxd4 {[%emt 0:00:07]} Rc6 {[%emt 0:00:02]} 37. Bd2 {[%emt 0:01:15]} Rc2 {[%emt 0:00:09]} 38. Kh1 {[%emt 0:02:03]} (38. f5 $142 Bc5 39. Rxg4) 38... Bc5 {[%emt 0:00:32]} 39. Rd5 {[%emt 0:02:23]} Bf2 {[%emt 0:00:09]} 40. f5 {[%emt 0:01:24]} Rb2 $19 {[%emt 0:01:48]} 41. a6 {[%emt 0:32:01]} Bxg3 {[%emt 0:30:54]} 42. Bc1 {[%emt 0:01:39]} Rb1 {[%emt 0:00:39]} 43. Rc5 {[%emt 0:01:06]} bxa6 {[%emt 0:00:09]} 44. Kg1 {[%emt 0:00:38]} Bf4 {[%emt 0:00:19]} 45. Kf1 {[%emt 0:00:16]} Rxc1+ {[%emt 0:00:06]} 46. Rxc1 {[%emt 0:00:03]} Bxc1 {[%emt 0:00:04]} 47. e6 {[%emt 0:00:03]} fxe6 {[%emt 0:00:04]} 48. fxe6 {[%emt 0:00:02]} g3 {[%emt 0:00:07]} 49. Ke2 {[%emt 0:00:03]} h2 {[%emt 0:00:09]} 50. Kf3 {[%emt 0:00:04]} h1=Q+ {[%emt 0:00:06]} 51. Kxg3 {[%emt 0:00:01]} Ke7 {[%emt 0:00:09]} 52. Kg4 {[%emt 0:00:02]} Kxe6 {[%emt 0:00:09]} 53. Kg3 {[%emt 0:00:04]} a5 {[%emt 0:00:22]} 54. Kf2 {[%emt 0:00:04]} a4 {[%emt 0:00:02]} 55. Kg3 {[%emt 0:00:18]} a3 {[%emt 0:00:04]} 56. Kf2 {[%emt 0:00:05]} a2 {[%emt 0:00:02]} 57. Ke2 {[%emt 0:00:09]} a1=R {[%emt 0:00:11]} 58. Kd3 {[%emt 0:00:05]} Bh6 {[%emt 0:00:18]} 59. Kc2 {[%emt 0:00:02]} Ra3 {[%emt 0:01:03]} 60. Kb2 {[%emt 0:00:00]} Qc1# {[%emt 0:00:00]} 0-1

[Event "WCCC U10 2019"]
[Site "Weifang"]
[Date "2019.08.28"]
[Round "7.5"]
[White "Xiong, Junyi"]
[Black "Vetokhin, Savva"]
[Result "0-1"]
[ECO "B59"]
[WhiteElo "1440"]
[BlackElo "2016"]
[Annotator "NA RC"]
[PlyCount "115"]
[EventDate "2019.08.21"]
[EventType "swiss"]
[EventCountry "CHN"]
[SourceTitle "playchess.com"]
[Source "ChessBase"]
[SourceQuality "1"]
[TimeControl "40/5400+30:1800+30"]

{[%evp 19,110,0,0,32767,32767,-32,16,17,31,22,32767,37,37,5,29,20,75,32767,43,15,32767,32767,32767,84,32767,32767,32767,41,141,32767,32767,49,99,92,239,43,64,62,45,41,36,43,50,70,125,113,139,132,118,32767,182,204,211,32767,66,32767,32767,32767,32767,134,171,32767,32767,130,168,68,65,32767,32767,32767,1,5,5,0,0,0,32767,32767,32767,32767,32767,0,0,0,0,-89,-85,32767,32767,-13,-8,32767,-1415]} 1. e4 {[%emt 0:00:00]} c5 {[%emt 0:00:00]} 2. Nf3 {[%emt 0:00:19]} Nc6 {[%emt 0:00:37]} 3. d4 {[%emt 0:00:28]} cxd4 {[%emt 0:00:34]} 4. Nxd4 {[%emt 0:01:07]} Nf6 {[%emt 0:00:59]} 5. Nc3 {[%emt 0:00:12]} d6 {[%emt 0:00:43]} 6. Be2 {[%emt 0:00:18]} e5 {[%emt 0:01:20]} 7. Nb3 {[%emt 0:00:33]} Be7 {[%emt 0:00:53]} 8. O-O {[%emt 0:00:36]} O-O {[%emt 0:01:02]} 9. Be3 {[%emt 0:00:43]} a5 {[%emt 0:00:54]} 10. a4 {[%emt 0:04:26]} Nb4 {[%emt 0:01:59]} 11. Bc4 {[%emt 0:05:58] B59: Classical Sicilian: 6 Be2 e5 7 Nb3} (11. f4 Be6 12. Kh1 Rc8 13. Bf3 d5 14. fxe5 Nxe4 15. Bxe4 dxe4 16. Nd4 Qc7 17. Qh5 g6 18. Nxe6 fxe6 19. Qg4 Nxc2 20. Qxe6+ Kg7 21. Rxf8 Rxf8 {½-½ (42) Harmon Vellotti,L (2396)-Corrales Jimenez,F (2577) Wheeling 2014}) 11... Qc7 {[%emt 0:06:45]} 12. Qe2 $146 {[%emt 0:03:37]} ({Predecessor:} 12. Bd5 Nfxd5 13. Nxd5 Nxd5 14. exd5 Bf5 15. c3 Qc4 16. f3 Bg6 17. Nc1 f5 18. Qb3 Qxb3 19. Nxb3 {0-1 (36) Camargo,S (2003)-Tovio,I (2275) Bogota 2012}) 12... Be6 {[%emt 0:04:54]} (12... Nxe4 $5 13. Nb5 (13. Nxe4 d5 $15) 13... Qc6 $11) 13. Bxe6 $1 {[%emt 0:00:07]} fxe6 {[%emt 0:00:03]} 14. Rad1 {[%emt 0:02:29]} Qc6 {[%emt 0:07:40]} 15. Bg5 {[%emt 0:00:56]} b6 {[%emt 0:02:54]} 16. f4 {[%emt 0:02:32]} exf4 {[%emt 0:03:20]} 17. Bxf4 {[%emt 0:00:43]} Rad8 {[%emt 0:11:19]} 18. Nd4 {[%emt 0:05:12]} Qc8 {[%emt 0:03:15]} 19. Be3 {[%emt 0:02:34]} g6 {[%emt 0:17:02]} 20. Kh1 {[%emt 0:09:56]} Kg7 {[%emt 0:05:20]} 21. Bg1 {[%emt 0:01:43]} e5 {[%emt 0:07:02]} 22. Nf3 {[%emt 0:01:25]} Nd7 {[%emt 0:01:24]} 23. Nb5 {[%emt 0:02:04]} Rf6 {[%emt 0:04:02]} ({Better is} 23... Qxc2 $14 24. Qxc2 Nxc2) 24. c3 {[%emt 0:00:10]} Na6 {[%emt 0:00:28] [#]} 25. Nd2 {[%emt 0:06:47]} (25. Bf2 $1 $16) 25... Rxf1 {[%emt 0:03:21]} (25... Nac5 $11) 26. Nxf1 {[%emt 0:00:46]} ({Of course not} 26. Rxf1 Nac5 $11) 26... Ndc5 $2 {[%emt 0:00:42] [#]} (26... Nac5 $1 $14) 27. Qc2 $2 {[%emt 0:00:18]} (27. Ne3 $1 $18) 27... Qc6 {[%emt 0:00:45]} 28. Ne3 {[%emt 0:02:19]} Qxe4 {[%emt 0:01:49]} 29. Qxe4 {[%emt 0:00:10]} Nxe4 {[%emt 0:00:04]} 30. Nd5 {[%emt 0:00:05] Double Attack} Bg5 {[%emt 0:00:38]} 31. Nxb6 {[%emt 0:00:22]} Nd2 {[%emt 0:05:36] [#]} (31... h5 $14) 32. h4 $1 {[%emt 0:00:34]} Bh6 {[%emt 0:00:09] [#]} 33. g4 $1 {[%emt 0:00:08]} Bf4 {[%emt 0:00:13]} 34. Nd5 {[%emt 0:00:36]} Nf3 {[%emt 0:03:21]} 35. Nxf4 {[%emt 0:00:31]} exf4 36. Bd4+ {[%emt 0:01:39]} Nxd4 {[%emt 0:00:56]} 37. Rxd4 {[%emt 0:00:11]} Rf8 {[%emt 0:00:02]} 38. Nxd6 {[%emt 0:00:15]} Nc5 {[%emt 0:00:07]} 39. Kg2 {[%emt 0:00:39]} Nb3 {[%emt 0:01:55]} 40. Re4 {[%emt 0:00:18]} Nc5 {[%emt 0:00:26] [#]} 41. Re7+ {[%emt 0:30:53]} ({White should try} 41. Rc4 $1 $18 {[%cal Rc4c5]} Nd3 42. b4) 41... Kg8 {[%emt 0:30:04]} 42. Ne4 {[%emt 0:00:46]} ({White should play} 42. Kf3 $18) 42... f3+ $1 {[%emt 0:00:52]} 43. Kf1 {[%emt 0:00:09]} Nd3 {[%emt 0:00:00]} 44. g5 {[%emt 0:00:00]} Rf4 {[%emt 0:00:00]} 45. Nf6+ {[%emt 0:00:00]} Kf8 {[%emt 0:00:00]} 46. Re4 {[%emt 0:00:00]} Rxe4 {[%emt 0:00:00]} 47. Nxe4 {[%emt 0:00:00]} Nxb2 {[%emt 0:00:00]} 48. Nc5 {[%emt 0:00:00]} Nd1 {[%emt 0:00:00]} 49. c4 {[%emt 0:00:00]} Ke7 {[%emt 0:00:00]} 50. Ke1 {[%emt 0:00:00]} f2+ {[%emt 0:00:00]} 51. Ke2 {[%emt 0:00:00]} Kd6 {[%emt 0:00:00]} 52. Nb7+ {[%emt 0:00:00]} (52. Nb3 $11 {remains equal.}) 52... Ke5 $1 {[%emt 0:00:00]} 53. Nxa5 {[%emt 0:00:00]} Kf4 {[%emt 0:00:00]} 54. Nb3 $1 {[%emt 0:00:00]} Kg3 {[%emt 0:00:00]} 55. a5 {[%emt 0:00:00]} Kg2 $19 {[%emt 0:00:00]} 56. Nd2 {[%emt 0:00:00]} Nc3+ {[%emt 0:00:00]} 57. Kd3 {[%emt 0:00:00]} Nb1 {[%emt 0:00:00]} 58. Kd4 {[%emt 0:04:03]} 0-1

[Event "WCCC U10 2019"]
[Site "Weifang"]
[Date "2019.08.28"]
[Round "7.6"]
[White "Meng, Yihan"]
[Black "Huang, Yuhang"]
[Result "1-0"]
[ECO "B22"]
[WhiteElo "1793"]
[BlackElo "1364"]
[Annotator "NA RC"]
[PlyCount "119"]
[EventDate "2019.08.21"]
[EventType "swiss"]
[EventCountry "CHN"]
[SourceTitle "playchess.com"]
[Source "ChessBase"]
[SourceQuality "1"]
[TimeControl "40/5400+30:1800+30"]

1. e4 {[%emt 0:00:00]} c5 {[%emt 0:00:00]} 2. c3 {[%emt 0:00:04]} Nf6 {[%emt 0:00:00]} 3. e5 {[%emt 0:00:06]} Nd5 {[%emt 0:00:00]} 4. d4 {[%emt 0:00:15]} cxd4 {[%emt 0:00:05]} 5. cxd4 {[%emt 0:01:01]} d6 {[%emt 0:00:12]} 6. Nf3 {[%emt 0:00:41]} Nc6 {[%emt 0:01:27]} 7. Bc4 {[%emt 0:00:57]} Nb6 {[%emt 0:00:12]} 8. Bb5 {[%emt 0:01:08]} dxe5 {[%emt 0:01:55]} 9. Nxe5 {[%emt 0:00:32]} Bd7 {[%emt 0:00:07]} 10. Nxd7 {[%emt 0:00:46]} Qxd7 {[%emt 0:00:11]} 11. Nc3 {[%emt 0:01:03]} e6 {[%emt 0:01:13]} 12. O-O {[%emt 0:01:18]} Be7 {[%emt 0:00:33]} 13. Qg4 {[%emt 0:00:53]} O-O {[%emt 0:02:49]} 14. Rd1 {[%emt 0:00:51]} Rfd8 {[%emt 0:01:10]} 15. Bh6 {[%emt 0:01:18]} Bf8 {[%emt 0:00:32]} 16. Bg5 {[%emt 0:03:39]} Be7 {[%emt 0:03:16]} 17. Bxe7 {[%emt 0:09:17]} Qxe7 {[%emt 0:00:12]} 18. Bxc6 {[%emt 0:00:46]} bxc6 {[%emt 0:00:56]} 19. a3 {[%emt 0:02:51]} Rd7 {[%emt 0:02:21]} 20. Rac1 {[%emt 0:00:50]} Rad8 {[%emt 0:04:50]} 21. Na2 {[%emt 0:01:15]} Qf6 {[%emt 0:02:45]} 22. Nb4 {[%emt 0:10:36]} Rxd4 {[%emt 0:01:30]} 23. Nxc6 {[%emt 0:00:13]} Rxg4 {[%emt 0:10:17]} 24. Rxd8+ {[%emt 0:00:05]} Qxd8 {[%emt 0:00:10]} 25. Nxd8 {[%emt 0:00:02]} Rd4 {[%emt 0:16:46]} 26. Nc6 {[%emt 0:00:12]} Rd2 {[%emt 0:09:02]} 27. b3 {[%emt 0:11:57]} Ra2 {[%emt 0:06:29]} 28. a4 {[%emt 0:00:23]} Rb2 {[%emt 0:00:27]} 29. Nxa7 {[%emt 0:01:17]} Rxb3 {[%emt 0:01:18]} 30. a5 {[%emt 0:00:14]} Nd7 {[%emt 0:16:19]} 31. Rc8+ {[%emt 0:00:19]} Nf8 {[%emt 0:00:04]} 32. g3 {[%emt 0:00:31]} g6 {[%emt 0:04:30]} 33. Nc6 {[%emt 0:00:07]} Ra3 {[%emt 0:00:18]} 34. Ra8 {[%emt 0:00:05]} Kg7 {[%emt 0:01:01]} 35. a6 {[%emt 0:00:06]} Nd7 {[%emt 0:02:31]} 36. a7 {[%emt 0:00:05]} Ra6 {[%emt 0:01:07]} 37. Rd8 {[%emt 0:01:11]} Nb6 {[%emt 0:00:37]} 38. Rb8 {[%emt 0:00:27]} Nd7 {[%emt 0:02:06]} 39. a8=Q {[%emt 0:00:05]} Nxb8 {[%emt 0:00:12]} 40. Na7 {[%emt 0:03:15]} Nc6 {[%emt 0:00:21]} 41. Qxc6 {[%emt 0:00:38]} Rxa7 {[%emt 0:00:06]} 42. Qc3+ {[%emt 0:30:36]} Kg8 {[%emt 0:32:36]} 43. Qf6 {[%emt 0:00:07]} Ra8 {[%emt 0:00:13]} 44. g4 {[%emt 0:00:11]} Rc8 {[%emt 0:00:29]} 45. h4 {[%emt 0:00:10]} Ra8 {[%emt 0:00:16]} 46. h5 {[%emt 0:00:48]} Re8 {[%emt 0:00:25]} 47. h6 {[%emt 0:00:06]} Kf8 {[%emt 0:00:35]} 48. f4 {[%emt 0:00:09]} e5 {[%emt 0:00:20]} 49. Qg7+ {[%emt 0:00:07]} Ke7 {[%emt 0:00:05]} 50. fxe5 {[%emt 0:00:04]} Kd8 {[%emt 0:00:34]} 51. Qxh7 {[%emt 0:00:05]} Rf8 {[%emt 0:00:15]} 52. Qg7 {[%emt 0:00:08]} Re8 {[%emt 0:00:35]} 53. h7 {[%emt 0:00:05]} Kc7 {[%emt 0:00:55]} 54. Qxf7+ {[%emt 0:00:05]} Kd8 {[%emt 0:00:11]} 55. e6 {[%emt 0:00:03]} Re7 {[%emt 0:00:10]} 56. h8=Q+ {[%emt 0:00:07]} Kc7 {[%emt 0:00:27]} 57. Qxe7+ {[%emt 0:00:27]} Kc6 {[%emt 0:00:08]} 58. Qd4 {[%emt 0:00:15]} Kb5 {[%emt 0:00:15]} 59. Qed6 {[%emt 0:00:06]} g5 {[%emt 0:00:43]} 60. Q6b6# {[%emt 0:00:04]} 1-0